[Event "Titled Tuesday Blitz May 2 Late 2023"]
[White "Klukin, Kirill"]
[Black "Mortazavi, Ali"]
[WhiteFideId "24199273"]
[BlackFideId "401323"]
[WhiteElo "2344"]
[BlackElo "2339"]
[Result "0-1"]
[Round "04"]
[TimeControl "180+2"]
[Date "2023.05.02"]
[WhiteClock "0:00:22"]
[BlackClock "0:00:11"]

1. c4 {[%clk 0:02:58]}  Nf6 {[%clk 0:02:59]} 2. g3 {[%clk 0:02:59]}  g6 {[%clk 0:03:00]} 3. Bg2 {[%clk 0:02:59]}  Bg7 {[%clk 0:03:01]} 4. e3 {[%clk 0:02:59]}  O-O {[%clk 0:03:02]} 5. Ne2 {[%clk 0:02:59]}  d6 {[%clk 0:03:02]} 6. O-O {[%clk 0:03:00]}  e5 {[%clk 0:03:03]} 7. Nbc3 {[%clk 0:03:01]}  Nbd7 {[%clk 0:02:58]} 8. d4 {[%clk 0:03:01]}  Re8 {[%clk 0:02:51]} 9. b4 {[%clk 0:03:01]}  h5 {[%clk 0:02:47]} 10. Bb2 {[%clk 0:02:55]}  h4 {[%clk 0:02:45]} 11. c5 {[%clk 0:02:55]}  hxg3 {[%clk 0:02:41]} 12. hxg3 {[%clk 0:02:55]}  exd4 {[%clk 0:02:25]} 13. exd4 {[%clk 0:02:54]}  Ng4 {[%clk 0:02:21]} 14. Nf4 {[%clk 0:02:50]}  Ndf6 {[%clk 0:02:11]} 15. Ncd5 {[%clk 0:02:45]}  c6 {[%clk 0:02:04]} 16. Nxf6+ {[%clk 0:02:42]}  Qxf6 {[%clk 0:02:01]} 17. cxd6 {[%clk 0:01:49]}  Qxd6 {[%clk 0:01:59]} 18. Qb3 {[%clk 0:01:49]}  Bf5 {[%clk 0:01:49]} 19. d5 {[%clk 0:01:49]}  Bxb2 {[%clk 0:01:24]} 20. Qxb2 {[%clk 0:01:50]}  cxd5 {[%clk 0:00:58]} 21. Nxd5 {[%clk 0:01:50]}  Re6 {[%clk 0:00:37]} 22. Rad1 {[%clk 0:01:48]}  Qf8 {[%clk 0:00:37]} 23. Bf3 {[%clk 0:01:47]}  Ne5 {[%clk 0:00:26]} 24. Bg2 {[%clk 0:01:46]}  Ng4 {[%clk 0:00:25]} 25. Rfe1 {[%clk 0:01:36]}  Rae8 {[%clk 0:00:25]} 26. Rxe6 {[%clk 0:01:29]}  Rxe6 {[%clk 0:00:25]} 27. Nf4 {[%clk 0:01:23]}  Re8 {[%clk 0:00:23]} 28. Bf3 {[%clk 0:01:00]}  Ne5 {[%clk 0:00:23]} 29. Be2 {[%clk 0:00:59]}  Qh6 {[%clk 0:00:22]} 30. Nd5 {[%clk 0:00:59]}  Re6 {[%clk 0:00:20]} 31. Nc7 {[%clk 0:00:54]}  Be4 {[%clk 0:00:20]} 32. f3 {[%clk 0:00:35]}  Qe3+ {[%clk 0:00:20]} 33. Kh2 {[%clk 0:00:33]}  Qf2+ {[%clk 0:00:19]} 34. Kh3 {[%clk 0:00:27]}  Bxf3 {[%clk 0:00:14]} 35. Rd8+ {[%clk 0:00:25]}  Kh7 {[%clk 0:00:14]} 36. Bxf3 {[%clk 0:00:24]}  Qxb2 {[%clk 0:00:12]} 37. Nxe6 {[%clk 0:00:24]}  Nxf3 {[%clk 0:00:11]} 38. Nf4 {[%clk 0:00:20]}  Qh2+ {[%clk 0:00:10]} 39. Kg4 {[%clk 0:00:21]}  Ne5+ {[%clk 0:00:11]} 40. Kg5 {[%clk 0:00:21]}  Qxg3+ {[%clk 0:00:10]} 41. Kf6 {[%clk 0:00:21]}  Qxf4+ {[%clk 0:00:10]} 42. Ke7 {[%clk 0:00:22]}  Nc6+ {[%clk 0:00:10]} 43. Kf8 {[%clk 0:00:22]}  Nxd8 {[%clk 0:00:11]} 0-1


[Site "https://www.chess.com"]

[Event "Titled Tuesday Blitz May 2 Late 2023"]
[White "Tanenbaum, Zachary"]
[Black "Ozates, Tuna"]
[WhiteFideId "2060850"]
[BlackFideId "6354521"]
[WhiteElo "2175"]
[BlackElo "2151"]
[Result "1-0"]
[Round "04"]
[TimeControl "180+2"]
[Date "2023.05.02"]
[WhiteClock "0:00:58"]
[BlackClock "0:00:56"]

1. e4 {[%clk 0:02:59]}  e5 {[%clk 0:02:59]} 2. Nf3 {[%clk 0:02:59]}  Nc6 {[%clk 0:02:59]} 3. Bc4 {[%clk 0:02:59]}  Bc5 {[%clk 0:02:59]} 4. c3 {[%clk 0:02:59]}  Nf6 {[%clk 0:02:59]} 5. d4 {[%clk 0:03:00]}  exd4 {[%clk 0:02:58]} 6. b4 {[%clk 0:03:00]}  Bd6 {[%clk 0:02:45]} 7. b5 {[%clk 0:02:35]}  Ne5 {[%clk 0:02:24]} 8. Nxe5 {[%clk 0:02:34]}  Bxe5 {[%clk 0:02:25]} 9. cxd4 {[%clk 0:02:33]}  Bd6 {[%clk 0:02:12]} 10. O-O {[%clk 0:02:29]}  Nxe4 {[%clk 0:01:51]} 11. Qh5 {[%clk 0:01:44]}  Qf6 {[%clk 0:01:40]} 12. Qe2 {[%clk 0:01:32]}  Qxd4 {[%clk 0:01:29]} 13. Bb2 {[%clk 0:01:31]}  Bxh2+ {[%clk 0:01:10]} 14. Kxh2 {[%clk 0:01:17]}  Qd6+ {[%clk 0:01:10]} 15. Kg1 {[%clk 0:01:14]}  f5 {[%clk 0:01:06]} 16. Bxg7 {[%clk 0:01:11]}  b6 {[%clk 0:00:56]} 17. Qh5+ {[%clk 0:00:58]} 1-0


[Site "https://www.chess.com"]

[Event "Titled Tuesday Blitz May 2 Late 2023"]
[White "Mordechai, Hanan"]
[Black "Klimkowski, Jan"]
[WhiteFideId "2804166"]
[BlackFideId "21856222"]
[WhiteElo "2324"]
[BlackElo "2331"]
[Result "0-1"]
[Round "04"]
[TimeControl "180+2"]
[Date "2023.05.02"]
[WhiteClock "0:00:01"]
[BlackClock "0:00:03"]

1. Nf3 {[%clk 0:03:00]}  Nf6 {[%clk 0:02:59]} 2. c4 {[%clk 0:02:58]}  g6 {[%clk 0:03:00]} 3. g3 {[%clk 0:02:58]}  Bg7 {[%clk 0:03:00]} 4. Bg2 {[%clk 0:02:58]}  O-O {[%clk 0:03:01]} 5. O-O {[%clk 0:02:59]}  c6 {[%clk 0:02:54]} 6. d4 {[%clk 0:02:47]}  d5 {[%clk 0:02:55]} 7. a4 {[%clk 0:02:47]}  dxc4 {[%clk 0:02:55]} 8. Na3 {[%clk 0:02:46]}  Be6 {[%clk 0:02:52]} 9. Ng5 {[%clk 0:02:45]}  Bg4 {[%clk 0:02:49]} 10. h3 {[%clk 0:02:43]}  Bf5 {[%clk 0:02:48]} 11. e4 {[%clk 0:02:25]}  Bd7 {[%clk 0:02:47]} 12. e5 {[%clk 0:02:25]}  Nd5 {[%clk 0:02:47]} 13. Nxc4 {[%clk 0:02:23]}  Na6 {[%clk 0:02:46]} 14. Qb3 {[%clk 0:02:05]}  Qc8 {[%clk 0:02:45]} 15. Kh2 {[%clk 0:01:56]}  Nac7 {[%clk 0:02:42]} 16. Ne3 {[%clk 0:01:47]}  Nxe3 {[%clk 0:02:41]} 17. Bxe3 {[%clk 0:01:48]}  h6 {[%clk 0:02:41]} 18. Ne4 {[%clk 0:01:46]}  Be6 {[%clk 0:02:38]} 19. Qc2 {[%clk 0:01:44]}  Bd5 {[%clk 0:02:38]} 20. b4 {[%clk 0:01:40]}  f5 {[%clk 0:02:32]} 21. exf6 {[%clk 0:01:20]}  exf6 {[%clk 0:02:32]} 22. Rfc1 {[%clk 0:01:05]}  Rd8 {[%clk 0:02:06]} 23. b5 {[%clk 0:01:02]}  f5 {[%clk 0:02:05]} 24. bxc6 {[%clk 0:00:48]}  bxc6 {[%clk 0:02:04]} 25. Nd2 {[%clk 0:00:46]}  Qe6 {[%clk 0:02:00]} 26. Bxd5 {[%clk 0:00:43]}  Nxd5 {[%clk 0:02:01]} 27. Qxc6 {[%clk 0:00:40]}  Qe7 {[%clk 0:01:56]} 28. Nf1 {[%clk 0:00:32]}  Rac8 {[%clk 0:01:50]} 29. Qxc8 {[%clk 0:00:31]}  Rxc8 {[%clk 0:01:51]} 30. Rxc8+ {[%clk 0:00:31]}  Kh7 {[%clk 0:01:52]} 31. Rc5 {[%clk 0:00:27]}  Qe4 {[%clk 0:01:48]} 32. Nd2 {[%clk 0:00:20]}  Qe6 {[%clk 0:01:48]} 33. Nc4 {[%clk 0:00:15]}  Bf8 {[%clk 0:01:45]} 34. Rb5 {[%clk 0:00:10]}  Nc7 {[%clk 0:01:46]} 35. Rb7 {[%clk 0:00:10]}  Qc8 {[%clk 0:01:33]} 36. Rab1 {[%clk 0:00:08]}  Kg8 {[%clk 0:01:29]} 37. Bf4 {[%clk 0:00:06]}  Ne6 {[%clk 0:01:27]} 38. Rb8 {[%clk 0:00:07]}  Qxc4 {[%clk 0:01:27]} 39. Bxh6 {[%clk 0:00:06]}  Qxd4 {[%clk 0:01:27]} 40. Kg1 {[%clk 0:00:03]}  Qxa4 {[%clk 0:01:25]} 41. R1b7 {[%clk 0:00:03]}  a5 {[%clk 0:01:20]} 42. Ra7 {[%clk 0:00:02]}  Qa1+ {[%clk 0:01:19]} 43. Kg2 {[%clk 0:00:02]}  Qe5 {[%clk 0:01:18]} 44. Raa8 {[%clk 0:00:02]}  Qe4+ {[%clk 0:01:13]} 45. Kg1 {[%clk 0:00:01]}  Qe1+ {[%clk 0:01:09]} 46. Kg2 {[%clk 0:00:02]}  Qe4+ {[%clk 0:01:08]} 47. Kg1 {[%clk 0:00:02]}  f4 {[%clk 0:00:58]} 48. Bxf8 {[%clk 0:00:03]}  Qe1+ {[%clk 0:00:58]} 49. Kg2 {[%clk 0:00:03]}  Qe4+ {[%clk 0:00:49]} 50. Kg1 {[%clk 0:00:03]}  f3 {[%clk 0:00:45]} 51. Bc5+ {[%clk 0:00:02]}  Kf7 {[%clk 0:00:44]} 52. Ra7+ {[%clk 0:00:03]}  Kf6 {[%clk 0:00:43]} 53. Ra6 {[%clk 0:00:01]}  Qe1+ {[%clk 0:00:40]} 54. Kh2 {[%clk 0:00:02]}  Qf1 {[%clk 0:00:40]} 55. Rf8+ {[%clk 0:00:02]}  Ke5 {[%clk 0:00:38]} 56. Rxe6+ {[%clk 0:00:02]}  Kxe6 {[%clk 0:00:39]} 57. Rxf3 {[%clk 0:00:03]}  Kd5 {[%clk 0:00:35]} 58. Ba3 {[%clk 0:00:03]}  Ke4 {[%clk 0:00:35]} 59. Re3+ {[%clk 0:00:03]}  Kd4 {[%clk 0:00:35]} 60. Rf3 {[%clk 0:00:03]}  Qd1 {[%clk 0:00:33]} 61. Kg2 {[%clk 0:00:02]}  Kc4 {[%clk 0:00:29]} 62. h4 {[%clk 0:00:03]}  Qd5 {[%clk 0:00:28]} 63. Bf8 {[%clk 0:00:03]}  Qe4 {[%clk 0:00:28]} 64. Ba3 {[%clk 0:00:04]}  Kd5 {[%clk 0:00:27]} 65. Bf8 {[%clk 0:00:05]}  Kc6 {[%clk 0:00:23]} 66. Ba3 {[%clk 0:00:05]}  a4 {[%clk 0:00:22]} 67. Bf8 {[%clk 0:00:06]}  Qd5 {[%clk 0:00:21]} 68. Ba3 {[%clk 0:00:06]}  Kd7 {[%clk 0:00:19]} 69. Bf8 {[%clk 0:00:07]}  Qe4 {[%clk 0:00:19]} 70. Ba3 {[%clk 0:00:07]}  Ke6 {[%clk 0:00:19]} 71. Bf8 {[%clk 0:00:08]}  Ke5 {[%clk 0:00:17]} 72. Ba3 {[%clk 0:00:08]}  Qg4 {[%clk 0:00:16]} 73. Re3+ {[%clk 0:00:07]}  Kd4 {[%clk 0:00:10]} 74. Bb2+ {[%clk 0:00:06]}  Kc4 {[%clk 0:00:10]} 75. Ba3 {[%clk 0:00:07]}  Qc8 {[%clk 0:00:09]} 76. Be7 {[%clk 0:00:07]}  Qb7+ {[%clk 0:00:08]} 77. Kg1 {[%clk 0:00:08]}  Qb1+ {[%clk 0:00:05]} 78. Kg2 {[%clk 0:00:08]}  Qb7+ {[%clk 0:00:04]} 79. Kg1 {[%clk 0:00:08]}  Kd4 {[%clk 0:00:05]} 80. Bf6+ {[%clk 0:00:08]}  Kd5 {[%clk 0:00:04]} 81. Be7 {[%clk 0:00:08]}  Qc6 {[%clk 0:00:04]} 82. Ba3 {[%clk 0:00:08]}  Qc2 {[%clk 0:00:03]} 83. Kg2 {[%clk 0:00:08]}  Qa2 {[%clk 0:00:03]} 84. g4 {[%clk 0:00:08]}  Qc4 {[%clk 0:00:03]} 85. Kg3 {[%clk 0:00:08]}  Kc6 {[%clk 0:00:03]} 86. h5 {[%clk 0:00:08]}  gxh5 {[%clk 0:00:03]} 87. gxh5 {[%clk 0:00:09]}  Qg8+ {[%clk 0:00:04]} 88. Kh4 {[%clk 0:00:09]}  Kd5 {[%clk 0:00:05]} 89. Be7 {[%clk 0:00:03]}  Qg1 {[%clk 0:00:05]} 90. h6 {[%clk 0:00:03]}  Qxf2+ {[%clk 0:00:05]} 91. Rg3 {[%clk 0:00:03]}  Qh2+ {[%clk 0:00:04]} 92. Kg4 {[%clk 0:00:03]}  Qxh6 {[%clk 0:00:04]} 93. Bg5 {[%clk 0:00:03]}  Qe6+ {[%clk 0:00:04]} 94. Kh4 {[%clk 0:00:04]}  Qe4+ {[%clk 0:00:04]} 95. Rg4 {[%clk 0:00:04]}  Qh7+ {[%clk 0:00:04]} 96. Kg3 {[%clk 0:00:03]}  a3 {[%clk 0:00:05]} 97. Bc1 {[%clk 0:00:03]}  a2 {[%clk 0:00:05]} 98. Bb2 {[%clk 0:00:03]}  Qd3+ {[%clk 0:00:04]} 99. Kh4 {[%clk 0:00:02]}  Qe2 {[%clk 0:00:04]} 100. Bg7 {[%clk 0:00:03]}  Qh2+ {[%clk 0:00:04]} 101. Kg5 {[%clk 0:00:04]}  Qd2+ {[%clk 0:00:04]} 102. Kg6 {[%clk 0:00:04]}  Qc2+ {[%clk 0:00:04]} 103. Kh6 {[%clk 0:00:04]}  Qd1 {[%clk 0:00:04]} 104. Rg5+ {[%clk 0:00:04]}  Ke6 {[%clk 0:00:03]} 105. Kg6 {[%clk 0:00:05]}  a1=Q {[%clk 0:00:02]} 106. Bxa1 {[%clk 0:00:04]}  Qxa1 {[%clk 0:00:03]} 107. Kh6 {[%clk 0:00:04]}  Qc1 {[%clk 0:00:03]} 108. Kh5 {[%clk 0:00:04]}  Qd2 {[%clk 0:00:02]} 109. Rg6+ {[%clk 0:00:04]}  Kf5 {[%clk 0:00:01]} 110. Rg4 {[%clk 0:00:02]}  Qh2+ {[%clk 0:00:02]} 111. Rh4 {[%clk 0:00:02]}  Qg2 {[%clk 0:00:02]} 112. Rf4+ {[%clk 0:00:01]}  Kxf4 {[%clk 0:00:03]} 113. Kh6 {[%clk 0:00:01]}  Kf5 {[%clk 0:00:03]} 0-1


[Site "https://www.chess.com"]

[Event "Titled Tuesday Blitz May 2 Late 2023"]
[White "Molenda, Marcin"]
[Black "Averjanov, Alexey"]
[WhiteFideId "1173065"]
[BlackFideId "14109867"]
[WhiteElo "2286"]
[BlackElo "2399"]
[Result "1/2-1/2"]
[Round "04"]
[TimeControl "180+2"]
[Date "2023.05.02"]
[WhiteClock "0:00:04"]
[BlackClock "0:00:22"]

1. e4 {[%clk 0:03:00]}  c6 {[%clk 0:02:59]} 2. Nc3 {[%clk 0:02:53]}  d5 {[%clk 0:03:00]} 3. Nf3 {[%clk 0:02:54]}  Bg4 {[%clk 0:02:58]} 4. h3 {[%clk 0:02:53]}  Bxf3 {[%clk 0:02:57]} 5. Qxf3 {[%clk 0:02:54]}  e6 {[%clk 0:02:57]} 6. g3 {[%clk 0:02:43]}  dxe4 {[%clk 0:02:57]} 7. Nxe4 {[%clk 0:02:43]}  Nd7 {[%clk 0:02:57]} 8. Bg2 {[%clk 0:02:42]}  Ngf6 {[%clk 0:02:57]} 9. d4 {[%clk 0:02:41]}  Nxe4 {[%clk 0:02:58]} 10. Qxe4 {[%clk 0:02:41]}  Nf6 {[%clk 0:02:58]} 11. Qd3 {[%clk 0:02:39]}  Be7 {[%clk 0:02:59]} 12. O-O {[%clk 0:02:39]}  O-O {[%clk 0:02:59]} 13. b3 {[%clk 0:02:38]}  a5 {[%clk 0:02:57]} 14. Bb2 {[%clk 0:02:38]}  a4 {[%clk 0:02:57]} 15. c4 {[%clk 0:02:39]}  axb3 {[%clk 0:02:54]} 16. axb3 {[%clk 0:02:40]}  Qb6 {[%clk 0:02:54]} 17. Rxa8 {[%clk 0:02:30]}  Rxa8 {[%clk 0:02:53]} 18. Ra1 {[%clk 0:02:31]}  Rxa1+ {[%clk 0:02:51]} 19. Bxa1 {[%clk 0:02:32]}  Qa5 {[%clk 0:02:51]} 20. Qc3 {[%clk 0:02:26]}  Bb4 {[%clk 0:02:40]} 21. Qb2 {[%clk 0:02:15]}  Ba3 {[%clk 0:02:40]} 22. Qa2 {[%clk 0:02:14]}  Bb4 {[%clk 0:02:36]} 23. Qxa5 {[%clk 0:02:13]}  Bxa5 {[%clk 0:02:37]} 24. Kf1 {[%clk 0:02:11]}  Kf8 {[%clk 0:02:37]} 25. Ke2 {[%clk 0:02:12]}  Ke7 {[%clk 0:02:36]} 26. Kd3 {[%clk 0:02:12]}  Kd6 {[%clk 0:02:34]} 27. Bb2 {[%clk 0:02:12]}  Bb4 {[%clk 0:02:33]} 28. Bc1 {[%clk 0:02:11]}  Kd7 {[%clk 0:02:32]} 29. g4 {[%clk 0:02:11]}  h6 {[%clk 0:02:30]} 30. f4 {[%clk 0:02:08]}  Ne8 {[%clk 0:02:26]} 31. g5 {[%clk 0:02:08]}  hxg5 {[%clk 0:02:25]} 32. fxg5 {[%clk 0:02:08]}  g6 {[%clk 0:02:25]} 33. d5 {[%clk 0:02:01]}  Nd6 {[%clk 0:02:16]} 34. dxc6+ {[%clk 0:01:58]}  bxc6 {[%clk 0:02:17]} 35. Be3 {[%clk 0:01:41]}  c5 {[%clk 0:02:11]} 36. Bf2 {[%clk 0:01:36]}  Nf5 {[%clk 0:02:06]} 37. Bf3 {[%clk 0:01:34]}  Kd6 {[%clk 0:02:05]} 38. Ke4 {[%clk 0:01:22]}  Bd2 {[%clk 0:02:00]} 39. h4 {[%clk 0:01:22]}  Bc3 {[%clk 0:01:55]} 40. h5 {[%clk 0:01:20]}  gxh5 {[%clk 0:01:53]} 41. Bxh5 {[%clk 0:01:20]}  Bd4 {[%clk 0:01:45]} 42. Be1 {[%clk 0:01:09]}  Ke7 {[%clk 0:01:43]} 43. Bg4 {[%clk 0:01:09]}  Nd6+ {[%clk 0:01:40]} 44. Kd3 {[%clk 0:01:04]}  Bg1 {[%clk 0:01:38]} 45. b4 {[%clk 0:01:01]}  cxb4 {[%clk 0:01:39]} 46. Bxb4 {[%clk 0:01:01]}  Kd7 {[%clk 0:01:39]} 47. c5 {[%clk 0:00:57]}  Ne8 {[%clk 0:01:33]} 48. Bf3 {[%clk 0:00:53]}  Bh2 {[%clk 0:01:27]} 49. Bh5 {[%clk 0:00:45]}  Bf4 {[%clk 0:01:22]} 50. Bxf7 {[%clk 0:00:44]}  Bxg5 {[%clk 0:01:22]} 51. c6+ {[%clk 0:00:43]}  Kd8 {[%clk 0:01:01]} 52. Bxe6 {[%clk 0:00:41]}  Nc7 {[%clk 0:01:00]} 53. Ba5 {[%clk 0:00:39]}  Be7 {[%clk 0:00:58]} 54. Kc4 {[%clk 0:00:37]}  Bd6 {[%clk 0:00:57]} 55. Bd7 {[%clk 0:00:35]}  Ke7 {[%clk 0:00:57]} 56. Be1 {[%clk 0:00:34]}  Be5 {[%clk 0:00:53]} 57. Kc5 {[%clk 0:00:33]}  Bd6+ {[%clk 0:00:48]} 58. Kb6 {[%clk 0:00:32]}  Nd5+ {[%clk 0:00:48]} 59. Kb7 {[%clk 0:00:32]}  Nf6 {[%clk 0:00:46]} 60. Bf5 {[%clk 0:00:26]}  Nd5 {[%clk 0:00:43]} 61. Bh4+ {[%clk 0:00:24]}  Ke8 {[%clk 0:00:42]} 62. Be6 {[%clk 0:00:20]}  Nc7 {[%clk 0:00:41]} 63. Bd7+ {[%clk 0:00:20]}  Kf7 {[%clk 0:00:42]} 64. Bd8 {[%clk 0:00:20]}  Nd5 {[%clk 0:00:42]} 65. Bg4 {[%clk 0:00:15]}  Ne7 {[%clk 0:00:37]} 66. Ba5 {[%clk 0:00:08]}  Nd5 {[%clk 0:00:37]} 67. Bd2 {[%clk 0:00:06]}  Ke7 {[%clk 0:00:33]} 68. Bg5+ {[%clk 0:00:06]}  Nf6 {[%clk 0:00:31]} 69. Kc8 {[%clk 0:00:05]}  Kf7 {[%clk 0:00:29]} 70. Bf5 {[%clk 0:00:05]}  Nd5 {[%clk 0:00:28]} 71. Be4 {[%clk 0:00:05]}  Nf6 {[%clk 0:00:27]} 72. Bf5 {[%clk 0:00:05]}  Nd5 {[%clk 0:00:27]} 73. Bb1 {[%clk 0:00:04]}  Ne7+ {[%clk 0:00:26]} 74. Kd7 {[%clk 0:00:04]}  Nxc6 {[%clk 0:00:22]} 75. Kxd6 {[%clk 0:00:04]}  Nd4 {[%clk 0:00:22]} 1/2-1/2


[Site "https://www.chess.com"]

[Event "Titled Tuesday Blitz May 2 Late 2023"]
[White "Karas, Marek"]
[Black "Papasimakopoulos, Alexandros"]
[WhiteFideId "14928558"]
[BlackFideId "4244125"]
[WhiteElo "2233"]
[BlackElo "2359"]
[Result "0-1"]
[Round "04"]
[TimeControl "180+2"]
[Date "2023.05.02"]
[WhiteClock "0:00:03"]
[BlackClock "0:00:46"]

1. d4 {[%clk 0:03:00]}  e6 {[%clk 0:02:57]} 2. Nf3 {[%clk 0:03:00]}  Nf6 {[%clk 0:02:57]} 3. c4 {[%clk 0:02:59]}  Bb4+ {[%clk 0:02:57]} 4. Bd2 {[%clk 0:02:59]}  c5 {[%clk 0:02:51]} 5. Bxb4 {[%clk 0:02:51]}  cxb4 {[%clk 0:02:52]} 6. a3 {[%clk 0:02:49]}  bxa3 {[%clk 0:02:46]} 7. Rxa3 {[%clk 0:02:50]}  O-O {[%clk 0:02:44]} 8. e3 {[%clk 0:02:50]}  d5 {[%clk 0:02:37]} 9. Nc3 {[%clk 0:02:43]}  dxc4 {[%clk 0:02:32]} 10. Bxc4 {[%clk 0:02:44]}  Nc6 {[%clk 0:02:30]} 11. O-O {[%clk 0:02:42]}  b6 {[%clk 0:02:26]} 12. Qe2 {[%clk 0:02:35]}  Bb7 {[%clk 0:02:26]} 13. Ba6 {[%clk 0:02:32]}  Bxa6 {[%clk 0:02:15]} 14. Qxa6 {[%clk 0:02:25]}  Nb4 {[%clk 0:02:15]} 15. Qb5 {[%clk 0:02:12]}  a5 {[%clk 0:02:15]} 16. Na4 {[%clk 0:01:57]}  Rb8 {[%clk 0:02:14]} 17. Rc1 {[%clk 0:01:54]}  Qd7 {[%clk 0:02:07]} 18. Qxd7 {[%clk 0:01:48]}  Nxd7 {[%clk 0:02:08]} 19. Rc7 {[%clk 0:01:40]}  Nf6 {[%clk 0:02:08]} 20. Ne5 {[%clk 0:01:33]}  h6 {[%clk 0:02:02]} 21. h3 {[%clk 0:01:31]}  Nbd5 {[%clk 0:01:54]} 22. Rc6 {[%clk 0:01:23]}  Rfc8 {[%clk 0:01:48]} 23. Rxc8+ {[%clk 0:01:14]}  Rxc8 {[%clk 0:01:48]} 24. Nc3 {[%clk 0:01:14]}  Nxc3 {[%clk 0:01:44]} 25. bxc3 {[%clk 0:01:10]}  Nd5 {[%clk 0:01:41]} 26. c4 {[%clk 0:01:06]}  Nb4 {[%clk 0:01:41]} 27. Rc3 {[%clk 0:00:51]}  Rc7 {[%clk 0:01:36]} 28. Kf1 {[%clk 0:00:39]}  f6 {[%clk 0:01:36]} 29. Nf3 {[%clk 0:00:34]}  Nd5 {[%clk 0:01:27]} 30. Rc1 {[%clk 0:00:29]}  b5 {[%clk 0:01:26]} 31. Nd2 {[%clk 0:00:23]}  a4 {[%clk 0:01:17]} 32. Ra1 {[%clk 0:00:17]}  bxc4 {[%clk 0:01:13]} 33. Rxa4 {[%clk 0:00:17]}  c3 {[%clk 0:01:11]} 34. Nb3 {[%clk 0:00:10]}  Rb7 {[%clk 0:01:11]} 35. Nc5 {[%clk 0:00:02]}  Rb1+ {[%clk 0:00:59]} 36. Ke2 {[%clk 0:00:02]}  c2 {[%clk 0:01:00]} 37. Nd3 {[%clk 0:00:02]}  Nc3+ {[%clk 0:00:53]} 38. Kd2 {[%clk 0:00:03]}  Nxa4 {[%clk 0:00:54]} 39. Kxc2 {[%clk 0:00:03]}  Rg1 {[%clk 0:00:50]} 40. g3 {[%clk 0:00:02]}  g5 {[%clk 0:00:48]} 41. Kd2 {[%clk 0:00:02]}  Rh1 {[%clk 0:00:47]} 42. Ke2 {[%clk 0:00:03]}  Rxh3 {[%clk 0:00:46]} 43. Ne1 {[%clk 0:00:03]}  Rh1 {[%clk 0:00:46]} 0-1


[Site "https://www.chess.com"]

[Event "Titled Tuesday Blitz May 2 Late 2023"]
[White "Martinez Ramirez, Lennis"]
[Black "Risteski, Emil"]
[WhiteFideId "3509079"]
[BlackFideId "15005267"]
[WhiteElo "2410"]
[BlackElo "2251"]
[Result "0-1"]
[Round "04"]
[TimeControl "180+2"]
[Date "2023.05.02"]
[WhiteClock "0:00:12"]
[BlackClock "0:00:15"]

1. c4 {[%clk 0:03:00]}  f5 {[%clk 0:02:57]} 2. Nc3 {[%clk 0:02:59]}  Nf6 {[%clk 0:02:57]} 3. d4 {[%clk 0:02:58]}  e6 {[%clk 0:02:57]} 4. g3 {[%clk 0:02:57]}  Be7 {[%clk 0:02:57]} 5. Bg2 {[%clk 0:02:58]}  O-O {[%clk 0:02:57]} 6. Nh3 {[%clk 0:02:58]}  d6 {[%clk 0:02:56]} 7. O-O {[%clk 0:02:57]}  e5 {[%clk 0:02:54]} 8. Ng5 {[%clk 0:02:50]}  c6 {[%clk 0:02:37]} 9. d5 {[%clk 0:02:15]}  h6 {[%clk 0:02:35]} 10. Ne6 {[%clk 0:02:07]}  Bxe6 {[%clk 0:02:34]} 11. dxe6 {[%clk 0:02:07]}  Qc8 {[%clk 0:02:34]} 12. e4 {[%clk 0:02:04]}  Qxe6 {[%clk 0:02:19]} 13. Qb3 {[%clk 0:01:54]}  Nbd7 {[%clk 0:01:26]} 14. exf5 {[%clk 0:01:46]}  Qxf5 {[%clk 0:01:19]} 15. Qxb7 {[%clk 0:01:47]}  Rfc8 {[%clk 0:01:01]} 16. Bxc6 {[%clk 0:01:36]}  Rab8 {[%clk 0:00:55]} 17. Bxd7 {[%clk 0:01:35]}  Nxd7 {[%clk 0:00:51]} 18. Qd5+ {[%clk 0:01:03]}  Kh8 {[%clk 0:00:48]} 19. b3 {[%clk 0:01:03]}  Nf6 {[%clk 0:00:26]} 20. Qd2 {[%clk 0:00:50]}  h5 {[%clk 0:00:24]} 21. Ba3 {[%clk 0:00:47]}  h4 {[%clk 0:00:23]} 22. f3 {[%clk 0:00:47]}  Rd8 {[%clk 0:00:17]} 23. g4 {[%clk 0:00:47]}  Qg6 {[%clk 0:00:14]} 24. Rae1 {[%clk 0:00:43]}  Nd7 {[%clk 0:00:13]} 25. Qe2 {[%clk 0:00:29]}  Bg5 {[%clk 0:00:12]} 26. Rd1 {[%clk 0:00:26]}  Nc5 {[%clk 0:00:12]} 27. Bxc5 {[%clk 0:00:25]}  dxc5 {[%clk 0:00:13]} 28. Nd5 {[%clk 0:00:24]}  Re8 {[%clk 0:00:12]} 29. Qe4 {[%clk 0:00:24]}  Qh6 {[%clk 0:00:12]} 30. h3 {[%clk 0:00:24]}  Rf8 {[%clk 0:00:12]} 31. Kg2 {[%clk 0:00:24]}  Rbe8 {[%clk 0:00:11]} 32. Rde1 {[%clk 0:00:24]}  Bf4 {[%clk 0:00:11]} 33. Re2 {[%clk 0:00:24]}  Bg3 {[%clk 0:00:11]} 34. Qd3 {[%clk 0:00:20]}  a5 {[%clk 0:00:11]} 35. Re4 {[%clk 0:00:19]}  Rd8 {[%clk 0:00:11]} 36. Qe2 {[%clk 0:00:19]}  Rfe8 {[%clk 0:00:09]} 37. Qe3 {[%clk 0:00:20]}  Qa6 {[%clk 0:00:09]} 38. Qxc5 {[%clk 0:00:18]}  a4 {[%clk 0:00:08]} 39. b4 {[%clk 0:00:17]}  a3 {[%clk 0:00:09]} 40. Rc1 {[%clk 0:00:12]}  Qa4 {[%clk 0:00:09]} 41. Qe3 {[%clk 0:00:11]}  Rc8 {[%clk 0:00:08]} 42. Qd3 {[%clk 0:00:11]}  Red8 {[%clk 0:00:07]} 43. b5 {[%clk 0:00:09]}  Qa8 {[%clk 0:00:05]} 44. Qb3 {[%clk 0:00:09]}  Rxd5 {[%clk 0:00:05]} 45. cxd5 {[%clk 0:00:06]}  Rxc1 {[%clk 0:00:06]} 46. b6 {[%clk 0:00:06]}  Qc8 {[%clk 0:00:06]} 47. b7 {[%clk 0:00:05]}  Qc2+ {[%clk 0:00:06]} 48. Qxc2 {[%clk 0:00:05]}  Rxc2+ {[%clk 0:00:07]} 49. Kf1 {[%clk 0:00:06]}  Rb2 {[%clk 0:00:07]} 50. d6 {[%clk 0:00:04]}  Rxb7 {[%clk 0:00:07]} 51. Ra4 {[%clk 0:00:04]}  Rd7 {[%clk 0:00:07]} 52. Ra6 {[%clk 0:00:04]}  Kg8 {[%clk 0:00:08]} 53. Ke2 {[%clk 0:00:03]}  Kf7 {[%clk 0:00:08]} 54. g5 {[%clk 0:00:03]}  Ke6 {[%clk 0:00:08]} 55. Rxa3 {[%clk 0:00:03]}  Rxd6 {[%clk 0:00:09]} 56. Ra7 {[%clk 0:00:04]}  g6 {[%clk 0:00:09]} 57. Rg7 {[%clk 0:00:04]}  Kf5 {[%clk 0:00:10]} 58. Rf7+ {[%clk 0:00:04]}  Kxg5 {[%clk 0:00:10]} 59. a4 {[%clk 0:00:05]}  Ra6 {[%clk 0:00:11]} 60. f4+ {[%clk 0:00:04]}  Bxf4 {[%clk 0:00:10]} 61. Kf3 {[%clk 0:00:04]}  Rxa4 {[%clk 0:00:10]} 62. Rb7 {[%clk 0:00:05]}  Ra3+ {[%clk 0:00:11]} 63. Ke4 {[%clk 0:00:05]}  Rxh3 {[%clk 0:00:10]} 64. Kd5 {[%clk 0:00:06]}  Rg3 {[%clk 0:00:10]} 65. Ke6 {[%clk 0:00:07]}  h3 {[%clk 0:00:11]} 66. Rh7 {[%clk 0:00:07]}  Kg4 {[%clk 0:00:11]} 67. Rh6 {[%clk 0:00:07]}  g5 {[%clk 0:00:12]} 68. Rh7 {[%clk 0:00:07]}  Rg2 {[%clk 0:00:12]} 69. Kd5 {[%clk 0:00:07]}  h2 {[%clk 0:00:13]} 70. Ke4 {[%clk 0:00:08]}  Rg1 {[%clk 0:00:13]} 71. Rxh2 {[%clk 0:00:08]}  Bxh2 {[%clk 0:00:13]} 72. Kd3 {[%clk 0:00:09]}  Bf4 {[%clk 0:00:13]} 73. Ke2 {[%clk 0:00:10]}  Rg2+ {[%clk 0:00:14]} 74. Kf1 {[%clk 0:00:10]}  Ra2 {[%clk 0:00:14]} 75. Kg1 {[%clk 0:00:11]}  Kf3 {[%clk 0:00:14]} 76. Kf1 {[%clk 0:00:12]}  Ra1# {[%clk 0:00:15]} 0-1


[Site "https://www.chess.com"]